[Event "Kvibergspelen 2022"]
[Site "Kviberg Park Hotel & Conference, Krutvagen 2, Gothenburg, Sweden"]
[Date "2022.10.02"]
[Round "7.17"]
[White "Grahn, Vidar"]
[Black "Persson, Sebastian"]
[Result "1-0"]
[TimeControl "15 minutes + 5 seconds per move from move one (Round 1 - 4) / 90 minutes + 30 seconds per move from move one (Round 5 - 8)"]
[WhiteFideId "1744780"]
[BlackFideId "1764187"]
[WhiteElo "2054"]
[BlackElo "1659"]

1. e4 {[%clk 01:30:57]} {[%emt 00:00:02]} c6 {[%clk 01:30:54]} {[%emt
00:00:07]} 2. d4 {[%clk 01:31:23]} {[%emt 00:00:04]} d5 {[%clk 01:31:19]}
{[%emt 00:00:05]} 3. e5 {[%clk 01:31:48]} {[%emt 00:00:05]} Bf5 {[%clk
01:31:41]} {[%emt 00:00:07]} 4. h4 {[%clk 01:32:14]} {[%emt 00:00:04]} h5
{[%clk 01:32:04]} {[%emt 00:00:07]} 5. Bg5 {[%clk 01:32:36]} {[%emt 00:00:07]}
Qb6 {[%clk 01:28:34]} {[%emt 00:04:01]} 6. Bd3 {[%clk 01:31:47]} {[%emt
00:01:19]} Bxd3 {[%clk 01:14:28]} {[%emt 00:14:36]} 7. Qxd3 {[%clk 01:31:23]}
{[%emt 00:00:55]} e6 {[%clk 01:14:41]} {[%emt 00:00:17]} 8. Nf3 {[%clk
01:26:31]} {[%emt 00:05:22]} Ne7 {[%clk 01:10:28]} {[%emt 00:04:43]} 9. O-O
{[%clk 01:23:29]} {[%emt 00:03:32]} Nf5 {[%clk 01:10:41]} {[%emt 00:00:17]} 10.
b3 {[%clk 01:22:33]} {[%emt 00:01:26]} c5 {[%clk 01:05:11]} {[%emt 00:06:00]}
11. c4 {[%clk 01:22:00]} {[%emt 00:01:03]} dxc4 {[%clk 01:05:26]} {[%emt
00:00:14]} 12. Qxc4 {[%clk 01:22:04]} {[%emt 00:00:26]} Nc6 {[%clk 00:55:45]}
{[%emt 00:10:11]} 13. d5 {[%clk 01:20:45]} {[%emt 00:01:50]} exd5 {[%clk
00:56:05]} {[%emt 00:00:10]} 14. Qxd5 {[%clk 01:21:05]} {[%emt 00:00:09]} Nb4
{[%clk 00:56:18]} {[%emt 00:00:17]} 15. Qe4 {[%clk 01:20:19]} {[%emt 00:01:16]}
g6 {[%clk 00:55:57]} {[%emt 00:00:51]} 16. Nc3 {[%clk 01:09:34]} {[%emt
00:11:15]} Qc6 {[%clk 00:49:16]} {[%emt 00:07:11]} 17. Qxc6+ {[%clk 00:58:27]}
{[%emt 00:11:38]} bxc6 {[%clk 00:49:35]} {[%emt 00:00:10]} 18. Ne4 {[%clk
00:57:57]} {[%emt 00:01:00]} Be7 {[%clk 00:46:10]} {[%emt 00:03:54]} 19. Bxe7
{[%clk 00:54:13]} {[%emt 00:04:15]} Kxe7 {[%clk 00:46:33]} {[%emt 00:00:07]} 20.
Rfc1 {[%clk 00:52:09]} {[%emt 00:02:35]} Nd4 {[%clk 00:41:34]} {[%emt
00:05:28]} 21. Rxc5 {[%clk 00:40:33]} {[%emt 00:12:06]} Nxf3+ {[%clk 00:37:02]}
{[%emt 00:05:02]} 22. gxf3 {[%clk 00:38:59]} {[%emt 00:02:04]} Nd3 {[%clk
00:36:48]} {[%emt 00:00:44]} 23. Rxc6 {[%clk 00:37:18]} {[%emt 00:02:11]} Nxe5
{[%clk 00:36:55]} {[%emt 00:00:23]} 24. Rc7+ {[%clk 00:37:09]} {[%emt
00:00:39]} Kd8 {[%clk 00:36:37]} {[%emt 00:00:49]} 25. Rb7 {[%clk 00:29:59]}
{[%emt 00:07:40]} Nxf3+ {[%clk 00:26:51]} {[%emt 00:10:15]} 26. Kg2 {[%clk
00:26:59]} {[%emt 00:03:29]} Nxh4+ {[%clk 00:26:09]} {[%emt 00:01:14]} 27. Kh3
{[%clk 00:27:24]} {[%emt 00:00:05]} Nf5 {[%clk 00:19:18]} {[%emt 00:07:20]} 28.
Rd1+ {[%clk 00:18:44]} {[%emt 00:09:10]} Kc8 {[%clk 00:14:11]} {[%emt
00:05:37]} 29. Rdd7 {[%clk 00:15:28]} {[%emt 00:03:45]} Rf8 {[%clk 00:12:03]}
{[%emt 00:02:38]} 30. Ng5 {[%clk 00:12:59]} {[%emt 00:03:00]} Nd6 {[%clk
00:07:51]} {[%emt 00:04:43]} 31. Rbc7+ {[%clk 00:12:05]} {[%emt 00:01:23]} Kb8
{[%clk 00:08:10]} {[%emt 00:00:11]} 32. Rc6 {[%clk 00:11:28]} {[%emt 00:01:07]}
Nf5 {[%clk 00:07:06]} {[%emt 00:01:35]} 33. Nxf7 {[%clk 00:11:37]} {[%emt
00:00:21]} a5 {[%clk 00:06:29]} {[%emt 00:01:06]} 34. Rb6+ {[%clk 00:11:49]}
{[%emt 00:00:18]} Kc8 {[%clk 00:06:50]} {[%emt 00:00:09]} 35. Rbb7 {[%clk
00:12:11]} {[%emt 00:00:08]} Ra6 {[%clk 00:05:33]} {[%emt 00:01:48]} 36. Rdc7#
{[%clk 00:12:38]} {[%emt 00:00:02]} 1-0

[Event "Kvibergspelen 2022"]
[Site "Kviberg Park Hotel & Conference, Krutvagen 2, Gothenburg, Sweden"]
[Date "2022.10.02"]
[Round "7.18"]
[White "Hauksson, Hordur Aron"]
[Black "Tabaa, Ghayth"]
[Result "1-0"]
[TimeControl "15 minutes + 5 seconds per move from move one (Round 1 - 4) / 90 minutes + 30 seconds per move from move one (Round 5 - 8)"]
[WhiteFideId "2303680"]
[BlackFideId "7603819"]
[WhiteElo "1882"]
[BlackElo "2066"]

1. d4 {[%clk 01:27:53]} {[%emt 00:03:07]} d6 {[%clk 01:28:46]} {[%emt
00:02:15]} 2. c4 {[%clk 01:28:08]} {[%emt 00:00:14]} e5 {[%clk 01:28:39]}
{[%emt 00:00:37]} 3. dxe5 {[%clk 01:25:05]} {[%emt 00:03:33]} dxe5 {[%clk
01:26:39]} {[%emt 00:02:30]} 4. Qxd8+ {[%clk 01:25:27]} {[%emt 00:00:08]} Kxd8
{[%clk 01:27:00]} {[%emt 00:00:10]} 5. Nf3 {[%clk 01:25:13]} {[%emt 00:00:43]}
f6 {[%clk 01:26:43]} {[%emt 00:00:47]} 6. Nc3 {[%clk 01:24:17]} {[%emt
00:01:26]} c6 {[%clk 01:26:53]} {[%emt 00:00:20]} 7. e3 {[%clk 01:18:58]}
{[%emt 00:05:49]} Bf5 {[%clk 01:24:06]} {[%emt 00:03:17]} 8. Be2 {[%clk
01:16:00]} {[%emt 00:03:28]} Nd7 {[%clk 01:23:51]} {[%emt 00:00:45]} 9. O-O
{[%clk 01:15:52]} {[%emt 00:00:38]} Kc7 {[%clk 01:23:42]} {[%emt 00:00:39]} 10.
b3 {[%clk 01:07:30]} {[%emt 00:08:52]} a5 {[%clk 01:23:01]} {[%emt 00:01:11]}
11. Rd1 {[%clk 01:01:11]} {[%emt 00:06:48]} Nc5 {[%clk 01:21:14]} {[%emt
00:02:17]} 12. Ba3 {[%clk 00:55:01]} {[%emt 00:06:40]} Nh6 {[%clk 01:04:01]}
{[%emt 00:17:43]} 13. Bxc5 {[%clk 00:39:26]} {[%emt 00:16:05]} Bxc5 {[%clk
01:04:21]} {[%emt 00:00:10]} 14. Bd3 {[%clk 00:37:38]} {[%emt 00:02:17]} Bxd3
{[%clk 00:52:58]} {[%emt 00:11:53]} 15. Rxd3 {[%clk 00:38:02]} {[%emt
00:00:07]} Rhd8 {[%clk 00:52:59]} {[%emt 00:00:29]} 16. Rad1 {[%clk 00:37:27]}
{[%emt 00:01:05]} Rxd3 {[%clk 00:52:56]} {[%emt 00:00:33]} 17. Rxd3 {[%clk
00:37:50]} {[%emt 00:00:06]} a4 {[%clk 00:42:23]} {[%emt 00:11:04]} 18. Rd1
{[%clk 00:20:57]} {[%emt 00:17:23]} axb3 {[%clk 00:34:08]} {[%emt 00:08:45]} 19.
axb3 {[%clk 00:21:25]} {[%emt 00:00:02]} Ra3 {[%clk 00:34:17]} {[%emt
00:00:20]} 20. Rb1 {[%clk 00:20:40]} {[%emt 00:01:16]} Nf5 {[%clk 00:32:22]} 21.
Ne1 {[%clk 00:15:50]} {[%emt 00:07:44]} Ra8 {[%clk 00:20:12]} 22. Nc2 {[%clk
00:14:41]} {[%emt 00:14:20]} Rd8 {[%clk 00:18:09]} 23. Rd1 {[%clk 00:14:52]}
{[%emt 00:02:52]} Rxd1+ {[%clk 00:11:20]} 24. Nxd1 {[%clk 00:15:19]} {[%emt
00:07:21]} b5 {[%clk 00:11:28]} 25. b4 {[%clk 00:13:01]} {[%emt 00:03:11]} Bf8
{[%clk 00:10:29]} 26. c5 {[%clk 00:13:25]} {[%emt 00:01:34]} Kd7 {[%clk
00:08:49]} 27. Nc3 {[%clk 00:09:14]} {[%emt 00:06:52]} Ne7 {[%clk 00:07:18]}
{[%emt 00:02:01]} 28. e4 {[%clk 00:08:52]} {[%emt 00:00:51]} g6 {[%clk
00:07:29]} {[%emt 00:00:20]} 29. Kf1 {[%clk 00:08:41]} {[%emt 00:00:40]} Bh6
{[%clk 00:06:44]} {[%emt 00:01:16]} 30. Ke2 {[%clk 00:08:58]} {[%emt 00:00:13]}
f5 {[%clk 00:06:51]} {[%emt 00:00:23]} 31. f3 {[%clk 00:08:54]} {[%emt
00:00:34]} Ng8 {[%clk 00:07:10]} {[%emt 00:00:12]} 32. Ne3 {[%clk 00:04:43]}
{[%emt 00:04:40]} Ke6 {[%clk 00:06:44]} {[%emt 00:00:56]} 33. g4 {[%clk
00:03:48]} {[%emt 00:01:25]} fxg4 {[%clk 00:02:44]} {[%emt 00:04:30]} 34. fxg4
{[%clk 00:03:57]} {[%emt 00:00:21]} Nf6 {[%clk 00:02:15]} {[%emt 00:00:59]} 35.
h3 {[%clk 00:04:23]} {[%emt 00:00:05]} Bf4 {[%clk 00:01:02]} {[%emt 00:01:43]}
36. Kd3 {[%clk 00:04:09]} {[%emt 00:00:43]} Bg3 {[%clk 00:00:49]} {[%emt
00:00:41]} 37. Ne2 {[%clk 00:03:28]} {[%emt 00:01:14]} Be1 {[%clk 00:00:45]}
{[%emt 00:00:33]} 38. Nc2 {[%clk 00:03:53]} {[%emt 00:00:05]} Bh4 {[%clk
00:00:54]} {[%emt 00:00:20]} 39. Ng1 {[%clk 00:02:42]} {[%emt 00:01:42]} h5
{[%clk 00:00:50]} {[%emt 00:00:34]} 40. Nf3 {[%clk 00:02:31]} {[%emt 00:00:41]}
hxg4 {[%clk 00:00:36]} {[%emt 00:00:44]} 41. Nxh4 {[%clk 00:01:47]} {[%emt
00:01:14]} gxh3 {[%clk 00:01:02]} {[%emt 00:00:04]} 42. Nf3 {[%clk 00:02:05]}
{[%emt 00:00:12]} Nh7 {[%clk 00:00:32]} {[%emt 00:00:59]} 43. Ne3 {[%clk
00:01:34]} {[%emt 00:01:03]} g5 {[%clk 00:00:43]} {[%emt 00:00:20]} 44. Ng4
{[%clk 00:01:37]} {[%emt 00:00:26]} Nf6 1-0

[Event "Kvibergspelen 2022"]
[Site "Kviberg Park Hotel & Conference, Krutvagen 2, Gothenburg, Sweden"]
[Date "2022.10.02"]
[Round "7.19"]
[White "Ziegler, Nathalie"]
[Black "Lindholm, Gustav"]
[Result "0-1"]
[TimeControl "15 minutes + 5 seconds per move from move one (Round 1 - 4) / 90 minutes + 30 seconds per move from move one (Round 5 - 8)"]
[WhiteFideId "1715984"]
[BlackFideId "1736515"]
[WhiteElo "1790"]
[BlackElo "2026"]

1. e4 {[%clk 01:29:38]} {[%emt 00:01:21]} c5 {[%clk 01:30:56]} {[%emt
00:00:04]} 2. Nf3 {[%clk 01:30:05]} {[%emt 00:00:04]} d6 {[%clk 01:31:22]}
{[%emt 00:00:04]} 3. d4 {[%clk 01:30:32]} {[%emt 00:00:03]} cxd4 {[%clk
01:31:48]} {[%emt 00:00:04]} 4. Nxd4 {[%clk 01:30:59]} {[%emt 00:00:03]} a6
{[%clk 01:32:05]} {[%emt 00:00:13]} 5. Nc3 {[%clk 01:30:13]} {[%emt 00:01:16]}
Nf6 {[%clk 01:32:26]} {[%emt 00:00:09]} 6. Be3 {[%clk 01:30:24]} {[%emt
00:00:19]} e5 {[%clk 01:32:49]} {[%emt 00:00:07]} 7. Nf3 {[%clk 01:30:19]}
{[%emt 00:00:35]} Be7 {[%clk 01:32:09]} {[%emt 00:01:09]} 8. Be2 {[%clk
01:28:55]} {[%emt 00:01:55]} Qc7 {[%clk 01:30:51]} {[%emt 00:01:47]} 9. h3
{[%clk 01:28:52]} {[%emt 00:00:33]} b5 {[%clk 01:30:57]} {[%emt 00:00:25]} 10.
a3 {[%clk 01:28:14]} {[%emt 00:01:09]} Nbd7 {[%clk 01:27:48]} {[%emt 00:03:38]}
11. O-O {[%clk 01:27:22]} {[%emt 00:01:22]} O-O {[%clk 01:27:25]} {[%emt
00:00:53]} 12. Nd2 {[%clk 01:26:28]} {[%emt 00:01:24]} Bb7 {[%clk 01:25:07]}
{[%emt 00:02:49]} 13. Bf3 {[%clk 01:16:43]} {[%emt 00:10:15]} Rad8 {[%clk
01:18:02]} {[%emt 00:07:34]} 14. g4 {[%clk 01:12:15]} {[%emt 00:04:58]} Nb6
{[%clk 01:14:21]} {[%emt 00:04:10]} 15. g5 {[%clk 01:02:16]} {[%emt 00:10:29]}
Ne8 {[%clk 01:13:23]} {[%emt 00:01:28]} 16. h4 {[%clk 01:00:29]} {[%emt
00:02:17]} f5 {[%clk 01:03:40]} {[%emt 00:10:13]} 17. Qe2 {[%clk 00:45:19]}
{[%emt 00:15:40]} fxe4 {[%clk 00:51:40]} {[%emt 00:12:31]} 18. Bxe4 {[%clk
00:39:44]} {[%emt 00:06:04]} Bxe4 {[%clk 00:51:49]} {[%emt 00:00:20]} 19. Ncxe4
{[%clk 00:39:51]} {[%emt 00:00:24]} d5 {[%clk 00:51:08]} {[%emt 00:01:11]} 20.
Bxb6 {[%clk 00:39:33]} {[%emt 00:00:48]} Qxb6 {[%clk 00:51:30]} {[%emt
00:00:09]} 21. Ng3 {[%clk 00:39:40]} {[%emt 00:00:21]} e4 {[%clk 00:49:37]}
{[%emt 00:02:23]} 22. Kg2 {[%clk 00:34:12]} {[%emt 00:05:56]} Rf4 {[%clk
00:44:58]} {[%emt 00:05:09]} 23. Rh1 {[%clk 00:33:02]} {[%emt 00:01:42]} Bc5
{[%clk 00:42:36]} {[%emt 00:02:52]} 24. Raf1 {[%clk 00:32:20]} {[%emt
00:01:09]} Nc7 {[%clk 00:42:21]} {[%emt 00:00:46]} 25. Nb3 {[%clk 00:29:26]}
{[%emt 00:03:25]} Rdf8 {[%clk 00:41:55]} {[%emt 00:00:57]} 26. Nxc5 {[%clk
00:28:56]} {[%emt 00:00:59]} Qxc5 {[%clk 00:42:20]} {[%emt 00:00:06]} 27. c3
{[%clk 00:28:45]} {[%emt 00:00:40]} Rf3 {[%clk 00:41:55]} {[%emt 00:00:54]} 28.
Qd2 {[%clk 00:24:15]} {[%emt 00:05:01]} Ne6 {[%clk 00:41:17]} {[%emt 00:01:08]}
29. Rh2 {[%clk 00:24:05]} {[%emt 00:00:36]} Nf4+ {[%clk 00:41:12]} {[%emt
00:00:39]} 30. Kh1 {[%clk 00:24:29]} {[%emt 00:00:05]} Nd3 {[%clk 00:41:25]}
{[%emt 00:00:18]} 31. b4 {[%emt 00:04:16]} Qb6 {[%clk 00:40:50]} {[%emt
00:01:00]} 32. Nh5 {[%clk 00:20:46]} {[%emt 00:00:32]} Qg6 {[%clk 00:36:45]}
{[%emt 00:04:34]} 33. Nxg7 {[%clk 00:20:43]} {[%emt 00:00:34]} Qxg7 {[%clk
00:36:35]} {[%emt 00:00:40]} 34. h5 {[%clk 00:21:12]} R8f4 {[%clk 00:35:34]}
{[%emt 00:01:32]} 35. g6 {[%clk 00:18:04]} {[%emt 00:03:38]} hxg6 {[%clk
00:30:48]} {[%emt 00:05:15]} 36. hxg6 {[%clk 00:18:27]} {[%emt 00:00:07]} Qxg6
{[%clk 00:29:12]} {[%emt 00:02:06]} 37. Qa2 {[%clk 00:18:49]} {[%emt 00:00:09]}
Qf5 {[%clk 00:28:26]} {[%emt 00:01:15]} 38. Rg1+ {[%clk 00:17:11]} {[%emt
00:02:07]} Kf7 {[%clk 00:28:31]} {[%emt 00:00:25]} 39. c4 {[%clk 00:11:17]}
{[%emt 00:06:25]} Nxf2+ {[%clk 00:28:16]} {[%emt 00:00:45]} 40. Kg2 {[%clk
00:10:50]} {[%emt 00:00:56]} Rg4+ {[%clk 00:28:39]} {[%emt 00:00:07]} 0-1